Cogmind - Beta 17 @@@ ROGUE MODE // 2026.07.08 @ 16:57:23 Player: beans Result: Destroyed by Y-54 Guardian with Gatling Laser Performance ------------- Evolutions (1) 500 Regions Visited (2) 400 Robots Destroyed (14) 70 Value Destroyed (149) 149 Prototype IDs (2) 40 Alien Tech Used (0) 0 Bonus (7650) 7650 TOTAL SCORE: 8809 Bonus ------- Prayed to X0-1V1 5000 Major X0-1V1 Interference 2650 Cogmind --------- Core Integrity 0/300 Matter 686/700 Energy 1393/1400 System Corruption 0% Temperature Cool (8) Movement Flying (37) Location -9/Materials Parts ------- > --- POWER (1) -------- (None) > --- PROPULSION (2) --- Improved Flight Unit Xenon Bombardment Thruster (fused) > --- UTILITY (4) ------ Terrain Scan Processor X0-1V1's Piety Tracker > --- WEAPON (2) ------- Beam Rifle > --- INVENTORY (5) ---- Medium Laser Beam Rifle Assault Cannon Assault Cannon Improved Grenade Launcher Peak State ------------ > --- POWER ------------ (None) > --- PROPULSION ------- Improved Flight Unit Xenon Bombardment Thruster > --- UTILITY ---------- Terrain Scan Processor X0-1V1's Piety Tracker > --- WEAPON ----------- Beam Rifle Improved Grenade Launcher > --- INVENTORY -------- Medium Laser Beam Rifle [Rating: 27] Favorites ----------- Power Ion Engine Engine Ion Engine Propulsion Light Treads Treads Light Treads Flight Unit Improved Flight Unit Utility X0-1V1's Piety Tracker Device X0-1V1's Piety Tracker Processor Terrain Scan Processor Protection Improved Medium Armor Plating Weapon Medium Laser Energy Gun Medium Laser Ballistic Gun Light Assault Rifle Launcher Improved Grenade Launcher Build | -11 -10 -9 ------- Run | Yrd Mat Mat Slots Evolved 2 | . . 2 Power . | . . . Propulsion . | . . . Utility 2 | . . 2 Weapon . | . . . Parts Attached 19 | 4 4 11 Power 1 | 1 . . Engine 1 | 1 . . Core . | . . . Reactor . | . . . Propulsion 5 | 2 . 3 Treads 2 | 2 . . Leg . | . . . Wheel . | . . . Hover . | . . . Flight 3 | . . 3 Utility 7 | . 3 4 Device 6 | . 3 3 Storage . | . . . Processor . | . . . Hackware . | . . . Protection 1 | . . 1 Artifact . | . . . Weapon 6 | 1 1 4 Energy Gun 1 | 1 . . Energy Cannon . | . . . Ballistic Gun 4 | . 1 3 Ballistic Cannon . | . . . Launcher 1 | . . 1 Special Weapon . | . . . Impact Weapon . | . . . Slashing Weapon . | . . . Piercing Weapon . | . . . Special Melee Weapon . | . . . Unidentified Prototypes 1 | . 1 . Parts Lost 9 | . . 9 Power 1 | . . 1 Propulsion 3 | . . 3 Utility 2 | . . 2 Weapon 3 | . . 3 Highest Loss Streak 8 | . . 8 To Critical Strikes . | . . . Average Backups 3 | . 3 4 Power . | . . . Propulsion . | . . 1 Utility . | . . . Weapon 3 | . 3 2 Tool/Special . | . . . Unused Backups 5 | 2 . 3 Power . | . . . Propulsion . | . . . Utility . | . . . Weapon 5 | 2 . 3 Tool/Special . | . . . Average Slot Usage (%) 66 | . 65 67 Engine 11 | . 14 7 Treads 23 | . 28 15 Flight 1 | . . 5 Device 5 | . 4 7 Processor 1 | . . 4 Protection 2 | . . 6 Energy Gun 13 | . 14 12 Ballistic Gun 5 | . 3 8 Peak Build Rating 27 | 4 18 27 Average Rating 11 | 2 8 18 On Entrance 7 | . 4 18 Avg Prop Armor Cover (%) . | . . . Naked Turns . | . . . Heaviest Build 16 | 7 9 16 Greatest Support 40 | 40 40 40 Greatest Overweight (x) . | . . . Average Overweight (x) . | . . . Largest Inventory Capacity 5 | 5 5 5 Average Capacity 5 | 5 5 5 Most Carried 5 | 5 5 5 Average Carried 3 | . 3 4 Final Capacity 5 | 5 5 5 Final Carried 5 | . 4 5 Class Distribution -------------------- 100% | Mutant Dominant Class ---------------- Mutant | -10/Materials Mutant | -9/Materials Resources | -11 -10 -9 ----------- Run | Yrd Mat Mat Matter Collected 429 | 240 96 93 Remotely . | . . . Salvage Created 306 | . 155 151 Parts 20 | . 14 6 Haulers Intercepted . | . . . Recyclers Shooed 2 | 1 1 . Parts Field Recycled . | . . . Retrieved Matter . | . . . Parts Self-Destructed . | . . . Prevented . | . . . Parts Restored . | . . . Kills | -11 -10 -9 ------- Run | Yrd Mat Mat Combat Hostiles Destroyed 12 | . 6 6 Guns 9 | . 6 3 AOE 3 | . . 3 Classes Destroyed 2 | . 2 . Recycler 2 | . 1 1 Swarmer 12 | . 6 6 Best Kill Streak 4 | . 4 4 Combat Bots Only 3 | . 3 3 Max Kills in Single Turn 3 | . 1 3 Gunslinging . | . . . Exploded 3 | . . 3 Melee . | . . . Uniques/NPCs Destroyed . | . . . Combat | -11 -10 -9 -------- Run | Yrd Mat Mat Hostile Shots Fired 247 | . 37 210 Missed 107 | . 6 101 Hits 140 | . 31 109 Melee 11 | . . 11 Projectile 129 | . 31 98 Critical Strikes 1 | . . 1 Damage Taken 1366 | . 258 1108 Core 340 | . 40 300 Absorbed by Shields . | . . . Ignored by Resistances 1 | . . 1 Core Remaining (%) 92 | 100 84 . Volleys Fired 59 | 14 26 19 Largest 2 | 1 2 2 Hottest 70 | 50 70 70 Shots Fired 102 | 14 52 36 Gun 101 | 14 52 35 Cannon . | . . . Launcher 1 | . . 1 Special . | . . . Kinetic 46 | . 26 20 Thermal 55 | 14 26 15 Explosive 1 | . . 1 Electromagnetic . | . . . Robot Hit Streak 12 | 3 12 11 Robot Miss Streak 6 | 1 4 6 Penetration Max . | . . . Secondary Targets 1 | . 1 . Max Gunslinging Chain 1 | . 1 . Shots Hit Robots 61 | 10 28 23 Core Hits 22 | 1 10 11 Critical Kills . | . . . Critical Parts Destroyed . | . . . Critical Strikes 7 | 1 5 1 Burn 7 | 1 5 1 Melee Attacks . | . . . Impact . | . . . Slashing . | . . . Piercing . | . . . Sneak Attacks . | . . . Combat Hostiles . | . . . Follow-up Attacks . | . . . Damage Inflicted 844 | 126 338 380 Guns 678 | 126 338 214 Cannons . | . . . Explosions 166 | . . 166 Melee . | . . . Ramming . | . . . Kinetic 228 | . 137 91 Thermal 450 | 126 201 123 Explosive 166 | . . 166 Electromagnetic . | . . . Impact . | . . . Slashing . | . . . Piercing . | . . . Highest Corruption 2 | . . 2 Average Corruption 2 | . . 2 Corruption Purged . | . . . Corruption Blocked . | . . . Overload Shots . | . . . Overflow Damage . | . . . Projectiles . | . . . Explosions . | . . . Melee . | . . . Knockbacks . | . . . Impact . | . . . Kinetic . | . . . Secondary . | . . . Self-Inflicted Damage 7 | . . 7 Shots 1 | . . 1 Rammed . | . . . Targets Rammed . | . . . Kicked . | . . . Crushed . | . . . Highest Temperature 200 | 140 200 70 Average Temperature 82 | 70 98 29 Received Heat Transfer 78 | . . 78 Siege Activations . | . . . Martial Activations . | . . . Shielding Activations . | . . . Robots Disrupted . | . . . Combat Hostiles . | . . . Robots Corrupted . | . . . Combat Hostiles . | . . . Parts Fried . | . . . Impact Corruptions . | . . . Robots Melted . | . . . Combat Hostiles . | . . . Parts Melted 3 | . 2 1 Heat Transferred 1850 | 444 962 444 Parts Sabotaged . | . . . Parts Stolen . | . . . Parts Stripped . | . . . Power Chain Reactions . | . . . Alert | -11 -10 -9 ------- Run | Yrd Mat Mat Maximum Alert Level 2 | . . 2 Low Security (%) 83 | 100 100 50 Level 1 13 | . . 39 Level 2 3 | . . 9 Level 3 . | . . . Level 4 . | . . . Level 5 . | . . . High Security . | . . . Max Security . | . . . Peak Influence 414 | . 98 414 Initial 37 | . . 37 Average 74 | . 12 199 Influence Increases 751 | . 146 605 Destroy 0b10 Robot/C 240 | . 120 120 Destroy 0b10 Robot/NC 10 | . 5 5 Destroy Leader 40 | . 20 20 Destroy Structure 12 | . 1 11 Lose Combat Pursuer 75 | . . 75 Miscellaneous 374 | . . 374 Influence Decreases 356 | . 56 300 Entered New Map 53 | . . 53 Time Decay 213 | . 56 157 Lost Part 90 | . . 90 Squads Dispatched 8 | . . 8 Investigation 2 | . . 2 Extermination . | . . . Reinforcement 6 | . . 6 Assault . | . . . Garrison . | . . . Intercept . | . . . Searches Triggered . | . . . Construction Impeded . | . . . Haulers Reinforced . | . . . Active Scanning Responses . | . . . Cargo Convoy Interrupts . | . . . Stealth | -11 -10 -9 --------- Run | Yrd Mat Mat Distress Signals 3 | . 1 2 Communications Jammed . | . . . Distress Signals . | . . . Times Spotted 37 | . 9 28 Peak Tracking Total 11 | . 5 11 Tactical Retreats 3 | . . 3 Traps | -11 -10 -9 ------- Run | Yrd Mat Mat Traps Triggered . | . . . Indirectly . | . . . Trap Hack Attempts . | . . . Triggered . | . . . Disarmed . | . . . Reprogrammed . | . . . Reused . | . . . Traps Extracted . | . . . Installed . | . . . Triggered . | . . . Machines | -11 -10 -9 ---------- Run | Yrd Mat Mat Machines Disabled . | . . . Max in Single Turn . | . . . Machines Repaired . | . . . Machines Dismantled . | . . . Machines Sabotaged . | . . . Overloaded Fab Kills . | . . . Hacking | -11 -10 -9 --------- Run | Yrd Mat Mat Machines Accessed . | . . . Terminals . | . . . Fabricators . | . . . Repair Stations . | . . . Recycling Units . | . . . Scanalyzers . | . . . Garrison Access . | . . . Total Hacks . | . . . Successful . | . . . Failed . | . . . Catastrophic . | . . . Database Lockouts . | . . . Manual 2 | . 2 . Terminals . | . . . Fabricators . | . . . Repair Stations . | . . . Recycling Units . | . . . Scanalyzers . | . . . Garrison Access . | . . . Terminal Hacks . | . . . Fabricator Hacks . | . . . Repair Station Hacks . | . . . Recycling Unit Hacks . | . . . Scanalyzer . | . . . Garrison Access Hacks . | . . . Unauthorized Hacks . | . . . Terminals . | . . . Fabricators . | . . . Repair Stations . | . . . Recycling Units . | . . . Scanalyzers . | . . . Garrison Access . | . . . Data Cores Recovered . | . . . Used . | . . . Hacking Detections . | . . . Full Trace Events . | . . . Feedback Events . | . . . Feedback Blocked . | . . . Robot Schematics Acquired . | . . . Robots Built . | . . . Authchips . | . . . Time . | . . . Total Robot Build Rating . | . . . Part Schematics Acquired . | . . . Parts Built . | . . . Authchips . | . . . Time . | . . . Total Part Build Rating . | . . . Part Studies Acquired . | . . . Parts Repaired . | . . . Time . | . . . Parts Recycled . | . . . Recycled Matter . | . . . Retrieved Matter . | . . . Retrieved Components . | . . . Parts Scanalyzed . | . . . Part Schematics Acquired . | . . . Parts Damaged . | . . . Bothacking | -11 -10 -9 ------------ Run | Yrd Mat Mat Used RIF Installer . | . . . Robots Hacked . | . . . Non-combat . | . . . Combat . | . . . Robot Hacks Applied . | . . . Relay Couplers Released . | . . . Fabnet Peak Effective % . | . . . Robots Rewired . | . . . Allies Hacked . | . . . Hacks Repelled . | . . . Allies | -11 -10 -9 -------- Run | Yrd Mat Mat Total Allies . | . . . Largest Group . | . . . Highest-Rated Group . | . . . Highest-Rated Ally . | . . . Total Orders . | . . . Ally Attacks . | . . . Total Damage . | . . . Kills . | . . . Allies Corrupted . | . . . Allies Melted . | . . . X0-1V1 Amusement Gains 44 | . 4 40 Good Acts 20 | . 1 19 Bad Acts 21 | . . 21 Intel | -11 -10 -9 ------- Run | Yrd Mat Mat Active Infowar (turns) . | . . . Robot Analysis Total . | . . . Derelict Logs Recovered . | . . . Drone Launches . | . . . Drone Recoveries . | . . . Exploration | -11 -10 -9 ------------- Run | Yrd Mat Mat Turns Passed 1104 | 77 654 373 Spaces Moved 526 | 48 156 322 Core 34 | 34 . . Treads 293 | 14 156 123 Legs . | . . . Wheels . | . . . Hover . | . . . Flight 199 | . . 199 Fastest Speed 37 | 50 160 37 Average Speed 106 | 82 160 83 Slowest Speed 160 | 160 160 160 Overloaded Moves . | . . . Propulsion Burnouts . | . . . Robots Hopped 7 | . . 7 Potential Cave-ins 2 | . . 2 Cave-ins Triggered . | . . . Exploration Rate (%) 22 | 3 25 38 Regions Visited 2 Branch Regions . Pre-discovered Areas . | . . . Known Exits Taken . | . . . Unknown Exits Taken 2 | 1 1 . Scrap Searched . | . . . Spaces Dug . | . . . Terrain Destroyed 10 | . . 10 Melee . | . . . Projectile . | . . . AOE 10 | . . 10 Terrain Rammed . | . . . Walls Destroyed . | . . . Machines Disabled . | . . . Actions | -11 -10 -9 --------- Run | Yrd Mat Mat Total 974 | 73 515 386 Wait 353 | . 320 33 Move 510 | 47 155 308 Hop 7 | . . 7 Pick Up 18 | 6 8 4 Fast Attach 4 | . . 4 Attach 12 | 4 4 4 Detach 1 | . . 1 Swap 3 | . . 3 Drop 7 | 2 2 3 Fire 59 | 14 26 19 Melee . | . . . Ram . | . . . Kick . | . . . Crush . | . . . Escape Stasis . | . . . Rewire . | . . . Trap . | . . . Miscellaneous . | . . . Route ------- -11/Scrapyard -10/Materials (discovered 2 exits: [*Mat] / [*Sub]) -9/Materials (discovered 3 exits: Mat x2 / Min) History --------- Turn | Location | Event 3 | -11/Scrapyard | Discovered new exit (range 16) 78 | -11/Scrapyard | Entered Materials 307 | -10/Materials | Build established: Mutant 357 | -10/Materials | Discovered new exit (range 9) 429 | -10/Materials | Prayed at D.C.S.S. Altar Unit 578 | -10/Materials | Derelicts attacked the area 582 | -10/Materials | Discovered new exit (range 14) 732 | -10/Materials | Entered another Materials area 732 | -9/Materials | Evolved 2 slots: Utility x2 735 | -9/Materials | EX resistance permanently improved by X0-1V1 (+10%; -100 max core) 738 | -9/Materials | X0-1V1 activates XOMVISION 743 | -9/Materials | X0-1V1 announced a LAN party 766 | -9/Materials | Identified exit to Materials 766 | -9/Materials | X0-1V1 revealed exit location to -8/Materials 777 | -9/Materials | X0-1V1 foreshadows a heat wave 783 | -9/Materials | X0-1V1 sent you to a vault 798 | -9/Materials | X0-1V1 released a cloud of subatomizers 810 | -9/Materials | X0-1V1 sent someone to clean up after you 838 | -9/Materials | X0-1V1 revealed exit location to -8/Materials 854 | -9/Materials | X0-1V1 added 0b10 threat records associated with you (minor) 921 | -9/Materials | X0-1V1 added 0b10 threat records associated with you (major) 929 | -9/Materials | X0-1V1 activates XOMVISION 937 | -9/Materials | Identified exit to Mines 937 | -9/Materials | X0-1V1 revealed exit location to -9/Mines 942 | -9/Materials | X0-1V1 vaporized surrounding terrain (radius 17) 1019 | -9/Materials | Ambient heat levels rising (+10) 1022 | -9/Materials | Core integrity fell below 50% 1050 | -9/Materials | Lost 8 parts (1p2n2u3w) 1064 | -9/Materials | Core integrity fell below 20% 1065 | -9/Materials | X0-1V1 upgraded hostiles (x2) 1103 | -9/Materials | Ambient heat levels rising (+10) 1105 | -9/Materials | Destroyed by Y-54 Guardian with Gatling Laser Last Messages --------------- reinforcements to Terminal M009. S-10 Pest heat damages Flight Unit. S-10 Pest overheating. S-10 Pest heat damages Lgt. Assault Rifle. S-10 Pest overheating. S-10 Pest heat spikes uncontrollably. S-10 Pest overheating. S-10 Pest heat damages Lgt. Ion Engine. S-10 Pest overheating. W-16 Scout heat damages core (-3). ALERT: Hostiles spotted, dispatching reinforcements to Terminal M008. ALERT: Sterilization system anomaly impacting ambient heat levels +10. X0-1V1: "Use it or lose it, I always say." Xenon Bombardment Thruster fused. W-16 Scout heat damages Hover Unit, Broken Lgt. Ion Engine, Visual Processing Unit, Hover Unit. X0-1V1 giggles madly! Map ----- +----------------------------------------------------+ | ?????????????????????????? | | ???????????????????????????### ### | | ?????????????????????????????????# | | ?????????????????????????????????# | | ?????????????????????????????????# | | ????????????????????????????????## | | ????????????????????????????????#" | | ????????????????????????????????#" | | ????????????????????????????????#" | | ????????????????????????????????#" | | ????????????????????????????????#" | | ????????????????????????????????## | | ?????????????????????????#######?# | | ????????# ???????????????# ### | | ????????# ???????????????# | | ????????# ?????????####### | | ????????# ?????????+ = | | ????????# ?????????????### #### | | ????????# ???????????????## ##??? | | ????????# ######+########## #???? | | ????????#= #???? | | ????????/w= +???? | | ?????????= #???? | | ?????????# #?# #???? | | ?????????#/#### ##??? | | ?????????#@ # !!! #### | | ?????????# w/ !!= | | ?????????# # Y !! "T" | | ?????????# # | | ?????##### # ###+ | | ?????#== # # ########### | | ?????#== # # #?? ?# | | ?????#]] ### #??""" # " | | ????##] # ### ## """ ]# "" | | ????# ] % # """ # "" | | ????##] + # "" | | ?????## """ ###### """ # " | | ??????#### """ #????? """ # | | ??????#### """ ######?""" #### | | ??????# +? ????? | | ??????# ######??####?????? | | ??????############????????????????? | | ??????????????????????????????????? | | ??????????????????????????????????? | | | | | | | | | | | | | +----------------------------------------------------+ Best States ------------- Heat Dissipation 68 Energy Generation 10 Energy Capacity 1550 Matter Stores 700 Matter Capacity 700 Sight Range 16 Terrain Scan Density 85 Armor Coverage 225 Resistance: EX 10 Evasion (%) 62 Recoil Reduction 2 Item Schematics ----------------- None Robot Schematics ------------------ None Fabricated ------------ Nothing Repaired ---------- Nothing Studied --------- None Alien Tech Used ----------------- None Achievements -------------- None Challenges ------------ None Game ------ Seed SupercompositeVariableTube Manual? 0 Play Time 00:20:04 Cumulative 365.1 hours Start 2026.07.07 @ 13:06:46 End 2026.07.08 @ 16:57:23 Sessions 1 Manual Loads 0 Difficulty Rogue Special Mode None Game No. 902 Rogue 900 Adventurer 2 Explorer 0 Win Type - Total 1 Types 1/0/0/0/0/0/0/0/0/0 Lore% 51 Gallery% 67 Achievement% 53 Wizard Run 0 Options --------- Layout 2 ASCII 0 Keyboard 0 Movement Mouse Keybinds 0 Fullscreen 1 Font 24/Smallcaps Map View 50x44 Zoom Use 0% Tactical HUD 0 Map Filters NONE Filters NONE Steam 1 RUN: e0a83a48-545b-4d11-bbde-3571e08c27a5